[Event "African Online-ch Women 2021"]
[Site "Online"]
[Date "2021.02.01"]
[Round "8.5"]
[White "Caxita, Esperanca"]
[Black "Madelta Glenda"]
[Result "0-1"]
[ECO "C01"]
[WhiteElo "1882"]
[BlackElo "1420"]
[Annotator "NA RC"]
[PlyCount "112"]
[EventDate "2021.02.01"]
[EventType "swiss"]
[EventCountry "NET"]
[SourceTitle "playchess.com"]
[Source "ChessBase"]
[SourceQuality "1"]
[TimeControl "1500+10"]

1. e4 {[%emt 0:00:00]} e6 {[%emt 0:00:04]} 2. d4 {[%emt 0:00:04]} d5 {[%emt 0:00:04]} 3. exd5 {[%emt 0:00:03]} exd5 {[%emt 0:00:03]} 4. Bd3 {[%emt 0:00:04]} Bd6 {[%emt 0:00:02]} 5. Nf3 {[%emt 0:00:03]} Ne7 {[%emt 0:00:05]} 6. c3 {[%emt 0:00:11]} f6 {[%emt 0:00:04]} 7. Be3 {[%emt 0:00:33]} c6 {[%emt 0:00:05]} 8. Nbd2 {[%emt 0:00:12]} Bf5 {[%emt 0:00:03]} 9. Be2 {[%emt 0:00:42]} Nd7 {[%emt 0:00:07]} 10. h3 {[%emt 0:00:56]} Qc7 {[%emt 0:00:27]} 11. Nf1 {[%emt 0:00:50]} a6 {[%emt 0:00:28]} 12. Nh4 {[%emt 0:00:40]} Be6 {[%emt 0:00:08]} 13. Bd3 {[%emt 0:00:05]} Nf8 {[%emt 0:00:43]} 14. Qe2 {[%emt 0:00:51]} Nfg6 {[%emt 0:01:00]} 15. Nxg6 {[%emt 0:00:47]} hxg6 {[%emt 0:00:06]} 16. O-O-O {[%emt 0:00:26]} O-O-O {[%emt 0:00:06]} 17. Re1 {[%emt 0:01:26]} Rde8 {[%emt 0:00:10]} 18. Nd2 {[%emt 0:00:24]} Bf5 {[%emt 0:00:25]} 19. Bxf5+ {[%emt 0:00:49]} Nxf5 {[%emt 0:00:06]} 20. Qg4 {[%emt 0:00:08]} Qf7 {[%emt 0:00:37]} 21. h4 {[%emt 0:01:32]} Kd8 {[%emt 0:00:19]} 22. Bf4 {[%emt 0:00:15]} Rxe1+ {[%emt 0:00:16]} 23. Rxe1 {[%emt 0:00:46]} Rxh4 {[%emt 0:00:12]} 24. Qe2 {[%emt 0:03:09]} Bxf4 {[%emt 0:00:27]} 25. g3 {[%emt 0:00:07]} Bxd2+ {[%emt 0:00:06]} 26. Qxd2 {[%emt 0:00:04]} Rh8 {[%emt 0:00:06]} 27. Qf4 {[%emt 0:00:05]} Kc8 {[%emt 0:00:22]} 28. g4 {[%emt 0:00:12]} Nh6 {[%emt 0:00:41]} 29. f3 {[%emt 0:02:30]} Re8 {[%emt 0:00:16]} 30. Rg1 {[%emt 0:00:31]} g5 {[%emt 0:00:17]} 31. Qd2 {[%emt 0:00:23]} Qe6 {[%emt 0:00:19]} 32. Kd1 {[%emt 0:01:31]} Qe3 {[%emt 0:00:31]} 33. Rf1 {[%emt 0:00:08]} Qxd2+ {[%emt 0:00:11]} 34. Kxd2 {[%emt 0:00:04]} Nf7 {[%emt 0:00:05]} 35. Rh1 {[%emt 0:00:09]} Re7 {[%emt 0:00:05]} 36. b3 {[%emt 0:00:12]} Nd6 {[%emt 0:00:11]} 37. Kd3 {[%emt 0:00:10]} Kc7 {[%emt 0:00:06]} 38. c4 {[%emt 0:00:06]} dxc4+ {[%emt 0:00:06]} 39. bxc4 {[%emt 0:00:03]} Rd7 {[%emt 0:00:06]} 40. Re1 {[%emt 0:00:14]} Nc8 {[%emt 0:00:11]} 41. a4 {[%emt 0:00:14]} Re7 {[%emt 0:00:23]} 42. Rb1 {[%emt 0:00:20]} Nb6 {[%emt 0:00:42]} 43. a5 {[%emt 0:00:07]} Nc8 {[%emt 0:00:13]} 44. d5 {[%emt 0:00:39]} Na7 {[%emt 0:01:23]} 45. Rc1 {[%emt 0:01:11]} Rd7 {[%emt 0:00:35]} 46. Ke4 {[%emt 0:00:11]} cxd5+ {[%emt 0:00:48]} 47. cxd5+ {[%emt 0:00:05]} Kd6 {[%emt 0:00:04]} 48. Rd1 {[%emt 0:00:54]} Nb5 {[%emt 0:00:14]} 49. Rd3 {[%emt 0:00:15]} Re7+ {[%emt 0:00:09]} 50. Kf5 {[%emt 0:00:07]} Nc7 {[%emt 0:00:19]} 51. f4 {[%emt 0:00:15]} gxf4 {[%emt 0:00:11]} 52. Kxf4 {[%emt 0:00:03]} Nxd5+ {[%emt 0:00:08]} 53. Kf5 {[%emt 0:00:11]} Kc5 {[%emt 0:00:23]} 54. g5 {[%emt 0:00:11]} Re5+ {[%emt 0:00:25]} 55. Kg6 {[%emt 0:00:07]} Rxg5+ {[%emt 0:00:05]} 56. Kf7 {[%emt 0:00:02]} Kb4 {[%emt 0:00:07]} 0-1

[Event "African Online-ch Women 2021"]
[Site "Online"]
[Date "2021.02.01"]
[Round "8.6"]
[White "Ndirangu, Joyce Nyaruai"]
[Black "Francis, Onkemetse"]
[Result "0-1"]
[ECO "D02"]
[WhiteElo "1659"]
[BlackElo "1798"]
[Annotator "NA RC"]
[PlyCount "124"]
[EventDate "2021.02.01"]
[EventType "swiss"]
[EventCountry "NET"]
[SourceTitle "playchess.com"]
[Source "ChessBase"]
[SourceQuality "1"]
[TimeControl "1500+10"]

1. d4 {[%emt 0:00:00]} d5 {[%emt 0:00:05]} 2. Nf3 {[%emt 0:00:06]} Nf6 {[%emt 0:00:03]} 3. Bf4 {[%emt 0:00:03]} c5 {[%emt 0:00:11]} 4. e3 {[%emt 0:00:08]} Nc6 {[%emt 0:00:05]} 5. Nbd2 {[%emt 0:00:06]} Bf5 {[%emt 0:00:28]} 6. c3 {[%emt 0:00:03]} Qb6 {[%emt 0:00:19]} 7. Qb3 {[%emt 0:00:15]} c4 {[%emt 0:00:33]} 8. Qxb6 {[%emt 0:00:11]} axb6 {[%emt 0:00:03]} 9. Be2 {[%emt 0:00:09]} h6 {[%emt 0:00:07]} 10. O-O {[%emt 0:00:11]} e6 {[%emt 0:00:02]} 11. a4 {[%emt 0:02:17]} Be7 {[%emt 0:01:34]} 12. Rfe1 {[%emt 0:01:15]} O-O {[%emt 0:00:43]} 13. Ne5 {[%emt 0:01:22]} Bc2 {[%emt 0:02:19]} 14. Bd1 {[%emt 0:00:08]} Bxd1 {[%emt 0:00:14]} 15. Rexd1 {[%emt 0:00:03]} Ra6 {[%emt 0:00:16]} 16. f3 {[%emt 0:00:24]} Rfa8 {[%emt 0:00:24]} 17. e4 {[%emt 0:00:25]} Rxa4 {[%emt 0:00:23]} 18. Rxa4 {[%emt 0:00:02]} Rxa4 {[%emt 0:00:03]} 19. b3 {[%emt 0:00:15]} cxb3 {[%emt 0:00:25]} 20. Nxb3 {[%emt 0:00:04]} dxe4 {[%emt 0:00:11]} 21. Rc1 {[%emt 0:05:32]} exf3 {[%emt 0:00:15]} 22. gxf3 {[%emt 0:00:03]} b5 {[%emt 0:00:56]} 23. Kf2 {[%emt 0:01:05]} Ra2+ {[%emt 0:01:50]} 24. Nd2 {[%emt 0:00:11]} Nd5 {[%emt 0:00:54]} 25. Be3 {[%emt 0:02:11]} Ba3 {[%emt 0:00:29]} 26. Rg1 {[%emt 0:00:22]} Nxe5 {[%emt 0:02:19]} 27. dxe5 {[%emt 0:00:15]} Kh7 {[%emt 0:00:03]} 28. Ke2 {[%emt 0:00:47]} Nxc3+ {[%emt 0:00:05]} 29. Kd3 {[%emt 0:00:03]} Nd5 {[%emt 0:00:19]} 30. Bd4 {[%emt 0:02:01]} b4 {[%emt 0:02:04]} 31. Bc5 {[%emt 0:04:42]} b3 {[%emt 0:01:38]} 32. Nxb3 {[%emt 0:00:14]} Bxc5 {[%emt 0:00:08]} 33. Nxc5 {[%emt 0:00:02]} b6 {[%emt 0:00:08]} 34. Ne4 {[%emt 0:00:26]} Rxh2 {[%emt 0:00:04]} 35. Rc1 {[%emt 0:00:17]} Rh3 {[%emt 0:02:18]} 36. Ke2 {[%emt 0:00:25]} Nf4+ {[%emt 0:01:14]} 37. Ke3 {[%emt 0:00:20]} Ng6 {[%emt 0:00:08]} 38. Nf2 {[%emt 0:00:13]} Rh4 {[%emt 0:01:09]} 39. Nd3 {[%emt 0:00:06]} Ne7 {[%emt 0:00:34]} 40. f4 {[%emt 0:01:30]} Nd5+ {[%emt 0:00:22]} 41. Kf3 {[%emt 0:00:04]} Rh3+ {[%emt 0:00:37]} 42. Ke4 {[%emt 0:00:07]} b5 {[%emt 0:00:25]} 43. Kd4 {[%emt 0:00:21]} Rf3 {[%emt 0:00:39]} 44. Rb1 {[%emt 0:00:16]} b4 {[%emt 0:00:18]} 45. Rb2 {[%emt 0:00:44]} Rf1 {[%emt 0:00:50]} 46. Ke4 {[%emt 0:00:21]} h5 {[%emt 0:00:46]} 47. Rh2 {[%emt 0:00:45]} Kh6 {[%emt 0:00:16]} 48. Nf2 {[%emt 0:00:09]} Rb1 {[%emt 0:00:25]} 49. Nd3 {[%emt 0:01:04]} b3 {[%emt 0:00:47]} 50. f5 {[%emt 0:00:47]} g5 {[%emt 0:00:51]} 51. fxg6 {[%emt 0:00:22]} fxg6 {[%emt 0:00:06]} 52. Kd4 {[%emt 0:00:09]} g5 {[%emt 0:00:09]} 53. Nc5 {[%emt 0:00:06]} b2 {[%emt 0:00:07]} 54. Nd3 {[%emt 0:00:05]} Rd1 {[%emt 0:00:46]} 55. Rxb2 {[%emt 0:00:04]} Nf4 {[%emt 0:00:02]} 56. Rb3 {[%emt 0:00:19]} Rxd3+ {[%emt 0:00:04]} 57. Rxd3 {[%emt 0:00:02]} Nxd3 {[%emt 0:00:02]} 58. Kxd3 {[%emt 0:00:02]} g4 {[%emt 0:00:02]} 59. Ke4 {[%emt 0:00:03]} Kg5 {[%emt 0:00:02]} 60. Ke3 {[%emt 0:00:02]} Kf5 {[%emt 0:00:07]} 61. Kf2 {[%emt 0:00:02]} h4 {[%emt 0:00:03]} 62. Kg2 {[%emt 0:00:04]} Kxe5 {[%emt 0:00:02]} 0-1

[Event "African Online-ch Women 2021"]
[Site "Online"]
[Date "2021.02.01"]
[Round "8.7"]
[White "Shah, Riya"]
[Black "Wanjiru, Lucy"]
[Result "1-0"]
[ECO "C45"]
[WhiteElo "1559"]
[BlackElo "1623"]
[Annotator "NA RC"]
[PlyCount "79"]
[EventDate "2021.02.01"]
[EventType "swiss"]
[EventCountry "NET"]
[SourceTitle "playchess.com"]
[Source "ChessBase"]
[SourceQuality "1"]
[TimeControl "1500+10"]

1. e4 {[%emt 0:00:00]} e5 {[%emt 0:00:20]} 2. Nf3 {[%emt 0:00:03]} Nc6 {[%emt 0:00:02]} 3. d4 {[%emt 0:00:03]} exd4 {[%emt 0:00:02]} 4. Nxd4 {[%emt 0:00:03]} Bc5 {[%emt 0:00:03]} 5. Be3 {[%emt 0:00:03]} Nxd4 {[%emt 0:00:33]} 6. Bxd4 {[%emt 0:00:03]} Bxd4 {[%emt 0:00:05]} 7. Qxd4 {[%emt 0:00:03]} Qf6 {[%emt 0:00:21]} 8. Qxf6 {[%emt 0:01:12]} Nxf6 {[%emt 0:00:04]} 9. Nc3 {[%emt 0:00:01]} a6 {[%emt 0:00:25]} 10. Bd3 {[%emt 0:02:04]} d6 {[%emt 0:00:04]} 11. h3 {[%emt 0:00:31]} Be6 {[%emt 0:00:11]} 12. g4 {[%emt 0:02:26]} h6 {[%emt 0:00:15]} 13. f4 {[%emt 0:00:16]} O-O-O {[%emt 0:00:25]} 14. O-O-O {[%emt 0:00:15]} Rhe8 {[%emt 0:01:01]} 15. Rhe1 {[%emt 0:00:03]} Bd7 {[%emt 0:00:07]} 16. Bc4 {[%emt 0:00:24]} Be6 {[%emt 0:00:07]} 17. Bd3 {[%emt 0:00:42]} b5 {[%emt 0:00:03]} 18. a3 {[%emt 0:00:33]} Bd7 {[%emt 0:00:06]} 19. f5 {[%emt 0:01:48]} Bc6 {[%emt 0:00:09]} 20. Rd2 {[%emt 0:00:16]} Kb7 {[%emt 0:00:10]} 21. Rde2 {[%emt 0:00:08]} Nd7 {[%emt 0:00:04]} 22. Na2 {[%emt 0:00:27]} Ne5 {[%emt 0:00:07]} 23. Nb4 {[%emt 0:00:13]} a5 {[%emt 0:00:45]} 24. Nxc6 {[%emt 0:00:40]} Kxc6 {[%emt 0:00:03]} 25. Re3 {[%emt 0:00:58]} Kb6 {[%emt 0:00:21]} 26. Bf1 {[%emt 0:00:26]} f6 {[%emt 0:00:07]} 27. Rb3 {[%emt 0:00:14]} c6 {[%emt 0:00:14]} 28. c4 {[%emt 0:00:14]} Rc8 {[%emt 0:00:16]} 29. Kb1 {[%emt 0:00:34]} Nf3 {[%emt 0:00:03]} 30. Rxf3 {[%emt 0:00:05]} b4 {[%emt 0:00:13]} 31. axb4 {[%emt 0:00:28]} axb4 {[%emt 0:00:03]} 32. Rfe3 {[%emt 0:00:57]} Re5 {[%emt 0:00:08]} 33. Kc2 {[%emt 0:00:07]} c5 {[%emt 0:00:23]} 34. Bg2 {[%emt 0:00:11]} Rb8 {[%emt 0:00:31]} 35. Rd3 {[%emt 0:00:04]} Kc7 {[%emt 0:00:02]} 36. Red1 {[%emt 0:00:05]} Rb6 {[%emt 0:00:02]} 37. Rd5 {[%emt 0:00:29]} Re7 {[%emt 0:00:30]} 38. Ra1 {[%emt 0:00:14]} Kb8 {[%emt 0:00:18]} 39. Kb3 {[%emt 0:00:34]} Rd7 {[%emt 0:01:48]} 40. Rdd1 {[%emt 0:00:52]} 1-0

[Event "African Online-ch Women 2021"]
[Site "Online"]
[Date "2021.02.01"]
[Round "8.8"]
[White "Joao, Delfina"]
[Black "Botlhole, Kgalalelo"]
[Result "1/2-1/2"]
[ECO "B21"]
[WhiteElo "1727"]
[BlackElo "1705"]
[Annotator "NA RC"]
[PlyCount "106"]
[EventDate "2021.02.01"]
[EventType "swiss"]
[EventCountry "NET"]
[SourceTitle "playchess.com"]
[Source "ChessBase"]
[SourceQuality "1"]
[TimeControl "1500+10"]

1. e4 {[%emt 0:00:00]} c5 {[%emt 0:00:06]} 2. f4 {[%emt 0:00:06]} d5 {[%emt 0:00:02]} 3. exd5 {[%emt 0:00:07]} Nf6 {[%emt 0:00:03]} 4. Nf3 {[%emt 0:00:23]} Nxd5 {[%emt 0:00:08]} 5. d4 {[%emt 0:01:16]} e5 {[%emt 0:01:25]} 6. dxe5 {[%emt 0:02:03]} Nc6 {[%emt 0:00:23]} 7. Bc4 {[%emt 0:00:40]} Nb6 {[%emt 0:01:46]} 8. Qxd8+ {[%emt 0:00:56]} Nxd8 {[%emt 0:00:06]} 9. Bb5+ {[%emt 0:00:11]} Nd7 {[%emt 0:00:03]} 10. Bxd7+ {[%emt 0:00:09]} Bxd7 {[%emt 0:00:02]} 11. O-O {[%emt 0:00:04]} Be7 {[%emt 0:00:05]} 12. Nc3 {[%emt 0:00:22]} Bf5 {[%emt 0:00:28]} 13. Nd5 {[%emt 0:00:27]} Rc8 {[%emt 0:00:09]} 14. Nxe7 {[%emt 0:00:18]} Kxe7 {[%emt 0:00:03]} 15. c3 {[%emt 0:00:05]} Nc6 {[%emt 0:00:09]} 16. Be3 {[%emt 0:00:09]} b6 {[%emt 0:00:03]} 17. Rad1 {[%emt 0:00:22]} Rhd8 {[%emt 0:00:02]} 18. Nh4 {[%emt 0:01:21]} Bc2 {[%emt 0:00:21]} 19. Rxd8 {[%emt 0:00:21]} Rxd8 {[%emt 0:00:03]} 20. Kf2 {[%emt 0:00:13]} Na5 {[%emt 0:00:10]} 21. Rc1 {[%emt 0:00:33]} Be4 {[%emt 0:00:19]} 22. b4 {[%emt 0:02:54]} Nb7 {[%emt 0:01:03]} 23. Ke2 {[%emt 0:03:32]} Bd3+ {[%emt 0:00:27]} 24. Kf3 {[%emt 0:00:06]} c4 {[%emt 0:00:17]} 25. f5 {[%emt 0:00:49]} f6 {[%emt 0:00:28]} 26. Bd4 {[%emt 0:01:49]} fxe5 {[%emt 0:00:13]} 27. Bxe5 {[%emt 0:00:13]} Kf7 {[%emt 0:00:02]} 28. Re1 {[%emt 0:00:41]} Re8 {[%emt 0:00:08]} 29. Re3 {[%emt 0:00:25]} Nd8 {[%emt 0:00:28]} 30. Bb8 {[%emt 0:00:48]} Nc6 {[%emt 0:00:57]} 31. Rxe8 {[%emt 0:01:16]} Kxe8 {[%emt 0:00:05]} 32. Bf4 {[%emt 0:00:14]} Ne7 {[%emt 0:00:08]} 33. g4 {[%emt 0:00:13]} Nd5 {[%emt 0:00:18]} 34. Be5 {[%emt 0:00:15]} Kf7 {[%emt 0:00:03]} 35. Ng2 {[%emt 0:00:21]} a5 {[%emt 0:02:52]} 36. a3 {[%emt 0:00:58]} axb4 {[%emt 0:00:05]} 37. axb4 {[%emt 0:00:05]} b5 {[%emt 0:00:06]} 38. Nf4 {[%emt 0:00:05]} Nxf4 {[%emt 0:00:46]} 39. Kxf4 {[%emt 0:00:05]} Be2 {[%emt 0:00:14]} 40. h4 {[%emt 0:00:21]} h5 {[%emt 0:00:51]} 41. g5 {[%emt 0:00:08]} g6 {[%emt 0:00:08]} 42. Bf6 {[%emt 0:00:43]} gxf5 {[%emt 0:00:18]} 43. Kxf5 {[%emt 0:00:07]} Bd3+ {[%emt 0:00:02]} 44. Ke5 {[%emt 0:00:03]} Kg6 {[%emt 0:00:01]} 45. Kd5 {[%emt 0:00:48]} Bc2 {[%emt 0:00:04]} 46. Kd6 {[%emt 0:00:22]} Kf7 {[%emt 0:00:07]} 47. Kd7 {[%emt 0:00:22]} Ba4 {[%emt 0:00:08]} 48. Kd6 {[%emt 0:00:21]} Bb3 {[%emt 0:00:09]} 49. Ke5 {[%emt 0:00:05]} Bc2 {[%emt 0:00:03]} 50. Kd5 {[%emt 0:00:22]} Bb3 {[%emt 0:00:06]} 51. Ke5 {[%emt 0:00:06]} Bc2 {[%emt 0:00:02]} 52. Kf4 {[%emt 0:00:27]} Kg6 {[%emt 0:00:04]} 53. Ke5 {[%emt 0:00:07]} Kf7 {[%emt 0:00:07]} 1/2-1/2

[Event "African Online-ch Women 2021"]
[Site "Online"]
[Date "2021.02.01"]
[Round "8.9"]
[White "Vilhete, Vania Fausto Da T."]
[Black "Rodriguez Guevara, Celia M."]
[Result "1-0"]
[ECO "E14"]
[WhiteElo "1799"]
[BlackElo "1849"]
[Annotator "NA RC"]
[PlyCount "47"]
[EventDate "2021.02.01"]
[EventType "swiss"]
[EventCountry "NET"]
[SourceTitle "playchess.com"]
[Source "ChessBase"]
[SourceQuality "1"]
[TimeControl "1500+10"]

1. d4 {[%emt 0:00:00]} d5 {[%emt 0:00:08]} 2. c4 {[%emt 0:00:05]} e6 {[%emt 0:00:04]} 3. Nf3 {[%emt 0:00:06]} Nf6 {[%emt 0:00:06]} 4. e3 {[%emt 0:00:05]} Be7 {[%emt 0:00:06]} 5. Bd3 {[%emt 0:00:04]} O-O {[%emt 0:00:21]} 6. O-O {[%emt 0:00:08]} Nbd7 {[%emt 0:01:08]} 7. Nbd2 {[%emt 0:00:07]} c5 {[%emt 0:00:25]} 8. b3 {[%emt 0:00:08]} b6 {[%emt 0:02:15]} 9. Bb2 {[%emt 0:00:05]} Bb7 {[%emt 0:00:09]} 10. Rc1 {[%emt 0:00:06]} Re8 {[%emt 0:00:22]} 11. Bb1 {[%emt 0:00:08]} cxd4 {[%emt 0:00:52]} 12. Nxd4 {[%emt 0:00:22]} dxc4 {[%emt 0:02:19]} 13. Nxc4 {[%emt 0:00:26]} Nc5 {[%emt 0:02:40]} 14. Qe2 {[%emt 0:00:55]} Qd5 {[%emt 0:02:31]} 15. Nf3 {[%emt 0:00:11]} Qh5 {[%emt 0:00:46]} 16. Nce5 {[%emt 0:01:52]} Nfe4 {[%emt 0:02:17]} 17. b4 {[%emt 0:02:50]} f6 {[%emt 0:03:03]} 18. bxc5 {[%emt 0:00:42]} fxe5 {[%emt 0:00:17]} 19. c6 {[%emt 0:00:16]} Bxc6 {[%emt 0:04:34]} 20. Rxc6 {[%emt 0:00:33]} Ng5 {[%emt 0:00:26]} 21. Nd4 {[%emt 0:03:17]} Qh6 {[%emt 0:00:38]} 22. Nf5 {[%emt 0:00:35]} Qf6 {[%emt 0:00:34]} 23. Nxe7+ {[%emt 0:01:31]} Rxe7 {[%emt 0:00:50]} 24. f4 {[%emt 0:01:46]} 1-0

[Event "African Online-ch Women 2021"]
[Site "Online"]
[Date "2021.02.01"]
[Round "8.10"]
[White "Ben Said, Safa"]
[Black "Maingi, Sasha"]
[Result "0-1"]
[ECO "B12"]
[WhiteElo "1577"]
[BlackElo "1599"]
[Annotator "NA RC"]
[PlyCount "104"]
[EventDate "2021.02.01"]
[EventType "swiss"]
[EventCountry "NET"]
[SourceTitle "playchess.com"]
[Source "ChessBase"]
[SourceQuality "1"]
[TimeControl "1500+10"]

1. e4 {[%emt 0:00:00]} c6 {[%emt 0:00:08]} 2. d4 {[%emt 0:00:40]} d5 {[%emt 0:00:13]} 3. e5 {[%emt 0:00:27]} Bf5 {[%emt 0:00:07]} 4. Nf3 {[%emt 0:00:06]} e6 {[%emt 0:00:16]} 5. Be2 {[%emt 0:00:08]} Nd7 {[%emt 0:00:08]} 6. Nc3 {[%emt 0:00:36]} Bg6 {[%emt 0:00:14]} 7. Bg5 {[%emt 0:00:47]} Be7 {[%emt 0:00:16]} 8. Qd2 {[%emt 0:00:21]} h6 {[%emt 0:01:55]} 9. Bxe7 {[%emt 0:00:24]} Nxe7 {[%emt 0:00:04]} 10. Nh4 {[%emt 0:00:05]} Qb6 {[%emt 0:01:59]} 11. Na4 {[%emt 0:00:28]} Qc7 {[%emt 0:00:16]} 12. f4 {[%emt 0:00:23]} Be4 {[%emt 0:01:01]} 13. Nc3 {[%emt 0:01:52]} Bh7 {[%emt 0:01:04]} 14. g4 {[%emt 0:01:25]} a6 {[%emt 0:00:57]} 15. Rf1 {[%emt 0:00:24]} O-O-O {[%emt 0:02:33]} 16. O-O-O {[%emt 0:00:10]} c5 {[%emt 0:00:16]} 17. f5 {[%emt 0:00:17]} cxd4 {[%emt 0:02:06]} 18. Qxd4 {[%emt 0:01:54]} Qxe5 {[%emt 0:00:30]} 19. fxe6 {[%emt 0:00:09]} fxe6 {[%emt 0:00:34]} 20. Rf7 {[%emt 0:00:05]} Qxd4 {[%emt 0:00:18]} 21. Rxd4 {[%emt 0:00:09]} Nc6 {[%emt 0:00:24]} 22. Rd2 {[%emt 0:00:23]} g5 {[%emt 0:00:41]} 23. Nf3 {[%emt 0:00:07]} Rdf8 {[%emt 0:00:18]} 24. Rxf8+ {[%emt 0:00:59]} Rxf8 {[%emt 0:00:03]} 25. h4 {[%emt 0:00:44]} Nde5 {[%emt 0:00:48]} 26. Nxe5 {[%emt 0:00:52]} Nxe5 {[%emt 0:00:05]} 27. hxg5 {[%emt 0:00:03]} hxg5 {[%emt 0:00:04]} 28. Na4 {[%emt 0:00:14]} Rf2 {[%emt 0:00:21]} 29. Nc5 {[%emt 0:00:19]} Bg8 {[%emt 0:00:23]} 30. Nxb7 {[%emt 0:00:12]} Nf3 {[%emt 0:06:25]} 31. Nd6+ {[%emt 0:03:52]} Kc7 {[%emt 0:01:40]} 32. Bxf3 {[%emt 0:00:39]} Rxf3 {[%emt 0:00:15]} 33. Ne8+ {[%emt 0:00:05]} Kd7 {[%emt 0:00:42]} 34. Ng7 {[%emt 0:00:12]} Rf4 {[%emt 0:00:49]} 35. Nh5 {[%emt 0:00:04]} Rf1+ {[%emt 0:00:09]} 36. Rd1 {[%emt 0:00:04]} Rf3 {[%emt 0:00:05]} 37. c4 {[%emt 0:00:44]} Kd6 {[%emt 0:00:14]} 38. cxd5 {[%emt 0:00:10]} exd5 {[%emt 0:00:02]} 39. Kc2 {[%emt 0:00:02]} Bh7+ {[%emt 0:00:06]} 40. Kd2 {[%emt 0:00:30]} Bg6 {[%emt 0:00:06]} 41. Ke2 {[%emt 0:00:20]} Rh3 {[%emt 0:00:19]} 42. Nf6 {[%emt 0:00:07]} Bf7 {[%emt 0:00:16]} 43. Ne4+ {[%emt 0:00:28]} Ke5 {[%emt 0:00:31]} 44. Nxg5 {[%emt 0:00:05]} Rh2+ {[%emt 0:00:17]} 45. Ke3 {[%emt 0:00:23]} Kf6 {[%emt 0:00:35]} 46. Nxf7 {[%emt 0:00:05]} Kxf7 {[%emt 0:00:02]} 47. Rf1+ {[%emt 0:00:03]} Ke6 {[%emt 0:00:04]} 48. Rf2 {[%emt 0:00:03]} Rh3+ {[%emt 0:00:04]} 49. Kd4 {[%emt 0:00:05]} Rg3 {[%emt 0:00:05]} 50. Rf4 {[%emt 0:00:11]} Rg2 {[%emt 0:00:08]} 51. Kc3 {[%emt 0:00:06]} Ke5 {[%emt 0:00:05]} 52. a3 {[%emt 0:00:09]} Kxf4 {[%emt 0:00:03]} 0-1

[Event "African Online-ch Women 2021"]
[Site "Online"]
[Date "2021.02.01"]
[Round "8.11"]
[White "Castro, Neusa Aridas De"]
[Black "Sitoe, Cheila Andre"]
[Result "1-0"]
[ECO "A00"]
[WhiteElo "1512"]
[BlackElo "1588"]
[Annotator "NA RC"]
[PlyCount "93"]
[EventDate "2021.02.01"]
[EventType "swiss"]
[EventCountry "NET"]
[SourceTitle "playchess.com"]
[Source "ChessBase"]
[SourceQuality "1"]
[TimeControl "1500+10"]

1. e3 {[%emt 0:00:00]} e5 {[%emt 0:00:07]} 2. e4 {[%emt 0:00:04]} Bc5 {[%emt 0:00:12]} 3. Bc4 {[%emt 0:00:08]} Nf6 {[%emt 0:00:07]} 4. Nc3 {[%emt 0:00:06]} d6 {[%emt 0:00:10]} 5. d3 {[%emt 0:00:08]} h6 {[%emt 0:00:10]} 6. h3 {[%emt 0:00:05]} Nc6 {[%emt 0:00:06]} 7. a3 {[%emt 0:00:06]} Be6 {[%emt 0:00:05]} 8. Bb5 {[%emt 0:00:19]} O-O {[%emt 0:00:07]} 9. Bxc6 {[%emt 0:00:05]} bxc6 {[%emt 0:00:06]} 10. Nf3 {[%emt 0:00:04]} Rb8 {[%emt 0:00:18]} 11. Rb1 {[%emt 0:00:07]} Qd7 {[%emt 0:00:26]} 12. Bd2 {[%emt 0:00:18]} Rb7 {[%emt 0:00:36]} 13. a4 {[%emt 0:00:11]} Rfb8 {[%emt 0:00:12]} 14. b3 {[%emt 0:00:03]} a6 {[%emt 0:00:09]} 15. Ne2 {[%emt 0:00:06]} Nh7 {[%emt 0:00:27]} 16. Ng3 {[%emt 0:00:04]} Ba7 {[%emt 0:00:32]} 17. Nh4 {[%emt 0:00:39]} Qd8 {[%emt 0:00:47]} 18. Nhf5 {[%emt 0:00:09]} Bxf5 {[%emt 0:00:32]} 19. Nxf5 {[%emt 0:00:05]} Qf6 {[%emt 0:00:14]} 20. Qg4 {[%emt 0:00:28]} Kh8 {[%emt 0:00:10]} 21. O-O {[%emt 0:00:28]} Qg6 {[%emt 0:00:23]} 22. Qxg6 {[%emt 0:00:11]} fxg6 {[%emt 0:00:07]} 23. Ne7 {[%emt 0:00:30]} g5 {[%emt 0:00:28]} 24. Nxc6 {[%emt 0:00:08]} Rf8 {[%emt 0:00:07]} 25. Nxa7 {[%emt 0:00:17]} Rxa7 {[%emt 0:00:05]} 26. Be3 {[%emt 0:00:06]} Rb7 {[%emt 0:00:06]} 27. d4 {[%emt 0:00:05]} Nf6 {[%emt 0:00:28]} 28. dxe5 {[%emt 0:00:11]} dxe5 {[%emt 0:00:04]} 29. f3 {[%emt 0:00:09]} c6 {[%emt 0:00:09]} 30. Bd2 {[%emt 0:00:07]} Nd7 {[%emt 0:00:21]} 31. Bc3 {[%emt 0:00:12]} c5 {[%emt 0:00:05]} 32. Rfd1 {[%emt 0:00:13]} Rfb8 {[%emt 0:00:05]} 33. Rd5 {[%emt 0:00:09]} Kg8 {[%emt 0:00:09]} 34. Bxe5 {[%emt 0:00:17]} Nxe5 {[%emt 0:00:11]} 35. Rxe5 {[%emt 0:00:04]} c4 {[%emt 0:00:04]} 36. Ra5 {[%emt 0:00:34]} cxb3 {[%emt 0:00:08]} 37. Rxb3 {[%emt 0:00:17]} Rxb3 {[%emt 0:00:06]} 38. cxb3 {[%emt 0:00:03]} Rxb3 {[%emt 0:00:07]} 39. Rxa6 {[%emt 0:00:03]} Kf7 {[%emt 0:00:09]} 40. Kf2 {[%emt 0:00:04]} Ke7 {[%emt 0:00:06]} 41. a5 {[%emt 0:00:04]} Ra3 {[%emt 0:00:05]} 42. Ra8 {[%emt 0:00:03]} Kf6 {[%emt 0:00:04]} 43. a6 {[%emt 0:00:03]} Ke5 {[%emt 0:00:05]} 44. a7 {[%emt 0:00:05]} Ra2+ {[%emt 0:00:08]} 45. Kg3 {[%emt 0:00:06]} h5 {[%emt 0:00:04]} 46. Re8+ {[%emt 0:00:09]} Kd4 {[%emt 0:00:04]} 47. a8=Q {[%emt 0:00:06]} 1-0